{"text_format":"1","workbook":"xlsx","n_sheets":8,"sheets":["Açıklamalar","Sayfa5","Genel Bilgiler","Referans Enerji Tüketimi","2021 Enerji Tüketim Bildirimi","Enerji Üretimi"," Enerji Tüketim Dağılımı","Bina Grubu Envanter Tablosu"],"not_rendered":{"charts":0,"images":1,"macros":1,"external_links":0,"defined_names":0,"comments":6,"pivot_tables":0},"unopened":[],"bounds":{"document_bytes":16777216,"sheet_cells":100000,"rows_first":2000,"rows_last":500,"rows_between":2000,"halvings":0,"cell_chars":16384,"cell_head_chars":4096},"cells_cut":0,"cells_raw":0,"read":"whole","date_system":"1900"}

{"sheet":"Açıklamalar","index":0,"n_rows":39,"n_cols":3,"rows_kept":39,"cut":false,"hidden":false,"merged":[[38,2,44,30],[14,2,15,30],[3,2,12,30],[17,2,19,30],[25,2,25,30],[26,2,28,30],[29,2,33,30],[34,2,36,30],[21,2,24,30]]}
[]
[null,"A) Yasal Yükümlülük"]
[]
[null,"►","18/04/2007 tarih ve 5627 Sayılı Enerji Verimliliği Kanununun 7 nci maddesi ve anılan kanun kapsamında 27/10/2011 tarih ve 28097 Sayılı Resmi Gazete'de yayımlanarak yürürlüğe konulan  Enerji Kaynaklarının ve Enerjinin Kullanımında Verimliliğin Artırılmasına Dair Yönetmelik'in 9'uncu maddesi uyarınca toplam inşaat alanı en az yirmi bin metrekare veya yıllık toplam enerji tüketimi beş yüz TEP ve üzeri olan ticari binaları ve hizmet binaları ile toplam inşaat alanı en az on bin metrekare veya yıllık toplam enerji tüketimi iki yüz elli TEP ve üzeri olan kamu kesimi binalarının yönetimleri, enerji yönetimi faaliyetlerini yerine getirmek üzere sertifikalı bir Enerji Yöneticisi görevlendirmek ve formatı Bakanlığımız tarafından belirlenen enerji tüketimi bilgilerini her yıl Mart ayı sonuna kadar Bakanlığımıza bildirmekle yükümlü tutulmuştur.\nEnerji yöneticisi görevlendirmesi yapmayan, eksik veya yanlış bildirimde bulunan bina yönetimlerine 06/07/2018 tarih ve 30470 Sayılı Resmi Gazete'de yayımlanarak yürürlüğe konulan Enerji Verimliliği Denetim Yönetmeliği çerçevesinde inceleme yapılarak ve idari yaptırım uygulanır."]
[]
[]
[]
[]
[]
[]
[]
[]
[]
[null,"B) Gizlilik İlkesi"]
[null,"►","Bakanlığımız, sağladığı bilgilerden gerçek ve tüzel kişilerin ticarî ilişkilerine zarar verecek bilgi ve belgelerin gizliliğine riayet eder."]
[]
[null,"C) Kullanıcı Sorumluluğu"]
[null,"►","Bina yönetimleri görevlendirdikleri enerji yöneticisi aracılığıyla doldurulan bu formun eksiksiz ve doğru bir şekilde her yıl Mart ayı sonuna kadar Bakanlığımıza bildirilmesinden sorumludur. Gerekli görülmesi halinde Bakanlığın yerinde yapacağı incelemelere imkan sağlarlar."]
[]
[]
[null,"D) Form Hakkında Genel Bilgiler"]
[null,"►","Yukarıdaki yükümlülük kriterlerini sağlayan binaların 2021 yılı enerji tüketim bildirimlerini Bakanlığa bildirmek üzere hazırlanmış bu formu doldurarak portal.bilgi@enerji.gov.tr , kamubinalari@enerji.gov.tr , ticari binalar@enerji.gov.tr adreslerine gönderiniz. e-posta ile iletilen formların ayrıca ıslak imzalı olarak posta yoluyla gönderilmesine gerek yoktur."]
[]
[]
[]
[null,"►","Veri girişi yapacağınız hücreler kullanım kolaylığı sağlaması adına kırmızı renkle boyanmıştır."]
[null,"►","Verisini gireceğiniz yakıt toplu alım yapılarak depolanan bir yakıt ise lütfen bildirim yılı içerisinde    (1 Ocak-31 Aralık) tüketilen miktarı bildiriniz. Bazı hücrelerde ilgili alanla ilgili açıklamalar verilmektedir. Lütfen bu açıklamaları okumayı ihmal etmeyiniz. Girdiğiniz verilerin doğru ve eksiksiz olduğunu kontrol etmeden lütfen bir sonraki bölüme geçmeyiniz."]
[]
[]
[null,"►","Gerektiği hallerde Bakanlık tarafından bu formla birlikte yayınlanmış olan tep (ton eşdeğer petrol) dönüşüm tablosunu kullanınınız. Ayrıca gerektiği yerlerde satır ekleme yapabilirsiniz. Bu formda TEP dönüşümü otomatik olarak hesaplanmaktadır. Ancak söz konusu tablo yardımı ile litre olarak alınan bir yakıtın ton cinsinden miktarının nasıl hesaplanabileceği, bu formda yer almayan diğer yakıt tanımları,  Net sıcak su, net buhar , net atık ısı ve net elektrik enerjisi tüketimlerinin nasıl hesaplanacağı gibi detaylar açıklanmaktadır. Lütfen detaylı açıklama için kurumumuzla iletişime geçiniz."]
[]
[]
[]
[]
[null,"►","Bu formda yer alan referans enerji tüketimi bildirimi alanı ilk defa bildirim yapacaklar için doldurulması zorunlu alandır. Daha önce enver portalı üzerinden bildirimde bulunmuş olanların tekrar doldurmalarına gerek yoktur."]
[]
[]
[null,"E) Sorumluluk Reddi"]
[null,"►","Bakanlık toplanan verilere dayalı olarak yıllık sektörel raporlar/göstergeler oluşturabilir. Bakanlık söz konusu raporun kapsam ve tasarımını önceden bildirimde bulunmaksızın güncelleme/değiştirebilme yetkisine sahiptir. Raporun basımı, çoğaltılması ve çalışmaya katılan yönetimlerle paylaşma yetkisi tamamen Bakanlığa aittir. Raporun kısmen veya tamamen çoğaltılması, alıntı yapılması, üçüncü taraflarla paylaşılması gibi hususlar Bakanlık'tan alınacak izne tabidir. Bakanlık raporlarda açıklanan herhangi bir bilgi, belge, ürün veya sürecin doğruluğu, tamlığı veya yararlılığına ilişkin, aleni veya zımni olarak, herhangi bir taahhüt sunmaz veya yasal bir yükümlülük veya sorumluluk üstlenmez veya bunların kullanımının özel hakları ihlal etmediğini beyan etmez."]

{"sheet":"Sayfa5","index":1,"n_rows":35,"n_cols":9,"rows_kept":35,"cut":false,"hidden":true,"merged":[]}
["Seçiniz","Seçiniz","Seçiniz","Seçiniz"]
["Kamu Binaları - İdari Bina (Ofisler, Kamu Kurumları, Belediye Hizmet Binaları vs.)","Var ","A","Yapıldı"]
["Kamu Binaları  - Eğitim Binaları (İlköğretim, Lise vs.)","Yok","B","Yapılmadı"]
["Kamu Binaları  - Hastaneler",null,"C","Yapılması Planlanıyor"]
["Kamu Binaları  - Konaklama Tesisleri (Misafirhane, Yurt vs.)",null,"D"]
["Kamu Binaları  - Üniversiteler",null,"E"]
["Kamu Binaları  - Ulaşım Amaçlı Binalar (Havaalanları, Garlar, Limanlar vs.)",null,"F"]
["Kamu Binaları  - Adli Binalar (Ceza İnfaz Kurumları, Mahkemeler vs)",null,"G"]
["Kamu Binaları  - Sosyal ve Kültürel Binalar ( Kütüphane, Tiyatro, Müze, Spor kompleksleri vs)"]
["Kamu Binaları  - Diğer ( Atık Su Arıtma Tesisleri, Pompaj / Basınçlandırma İstasyonları, Depolar vs.)"]
["Ticari ve Hizmet Binaları  - Ofisler, İş Merkezleri",null,null,null,null,null,null,null,"Seçiniz"]
["Ticari ve Hizmet Binaları  - Özel Eğitim Binaları (İlköğretim, Lise vs.)",null,null,null,null,null,null,null,"5 Yıldan Az"]
["Ticari ve Hizmet Binaları  - Özel Üniversiteler",null,null,"Seçiniz",null,null,null,null,"5-10 Yıl"]
["Ticari ve Hizmet Binaları  - Özel Hastaneler",null,null,"Isı Geri Kazanımlı Kombine Çevrim Gaz Türbini",null,null,null,null,"10-15 Yıl"]
["Ticari ve Hizmet Binaları  - Konaklama Tesisler (Oteller, Tatil Köyü vs.)",null,null,"Karşı Basınçlı Gaz Türbini",null,null,null,null,"15-20 Yıl"]
["Ticari ve Hizmet Binaları  - Alışveriş Merkezleri",null,null,"Ara Buhar Çekilen Yoğuşmalı Buhar Türbini ",null,null,null,null,"20 Yıldan Fazla"]
["Ticari ve Hizmet Binaları  - Sosyal ve Kültürel Binalar (Sinema, Tiyatro, Spor kompleksi vs)",null,null,"Isı Geri Kazanımlı Gaz Türbini"]
["Ticari ve Hizmet Binaları  - Diğer",null,null,"İçten Yanmalı Motor"]
[null,null,null,"Mikto Türbinler"]
["Seçiniz",null,null,"Stirling Motoru"]
["Bina Grubu (Kampüs)",null,null,"Yakıt Hücresi"]
["Münferit Bina",null,null,"Buhar Makinası"]
[null,null,null,"Organik Rankine Çevrimi"]
["Seçiniz",null,null,"Diğer"]
["5 Yıldan Az"]
["5-10 Yıl"]
["11-15 Yıl"]
["16-20 Yıl"]
["21-25 Yıl"]
["26-30 Yıl"]
["31-35 Yıl"]
["36-40 Yıl"]
["41-45 Yıl"]
["46-50 Yıl"]
["50 Yıldan Fazla"]

{"sheet":"Genel Bilgiler","index":2,"n_rows":40,"n_cols":26,"rows_kept":40,"cut":false,"hidden":false,"merged":[[0,0,1,31],[3,0,3,8],[3,10,3,31],[4,0,4,8],[4,10,4,31],[2,0,2,31],[5,0,5,8],[5,10,5,31],[10,0,10,8],[10,10,10,31],[11,0,11,8],[11,10,11,31],[8,0,8,31],[9,0,9,8],[9,10,9,31],[6,0,7,8],[6,9,7,9],[6,10,7,31],[12,0,12,8],[12,10,12,31],[13,0,13,31],[14,0,14,8],[14,10,14,31],[15,0,15,8],[15,10,15,31],[16,0,16,8],[16,10,16,31],[17,0,17,8],[17,10,17,31],[18,0,18,8],[18,10,18,31],[19,0,19,8],[19,10,19,31],[20,0,20,8],[20,10,20,31],[21,0,21,31],[29,0,29,8],[29,10,29,31],[22,0,22,8],[22,10,22,31],[23,0,24,8],[23,9,24,9],[23,10,24,31],[25,0,25,8],[25,10,25,31],[26,0,26,8],[26,10,26,31],[27,0,27,8],[27,10,27,31],[28,0,28,31],[30,0,30,8],[30,10,30,31],[31,0,31,8],[31,10,31,31],[32,0,32,8],[32,10,32,31],[33,0,33,8],[33,10,33,31],[34,0,34,8],[34,10,34,31],[36,0,36,8],[36,10,36,31],[39,0,39,8],[39,10,39,15],[39,16,39,24],[39,25,39,31],[35,0,35,8],[35,10,35,31],[37,0,37,8],[37,10,37,15],[37,16,37,24],[37,25,37,31],[38,0,38,8],[38,10,38,15],[38,16,38,24],[38,25,38,31]]}
["BİNA GENEL BİLGİLERİ"]
[]
["BİNA İLETİŞİM BİLGİLERİ"]
["Bina Adı / Unvanı",null,null,null,null,null,null,null,null,":"]
["İl",null,null,null,null,null,null,null,null,":"]
["İlçe",null,null,null,null,null,null,null,null,":"]
["İletişim Adresi",null,null,null,null,null,null,null,null,":"]
[]
["BİNA YÖNETİMİ VEYA SAHİBİNE İLİŞKİN BİLGİLER"]
["Adı, Soyadı",null,null,null,null,null,null,null,null,":"]
["Unvanı",null,null,null,null,null,null,null,null,":"]
["Telefon (İş)",null,null,null,null,null,null,null,null,":"]
["e-posta Adresi",null,null,null,null,null,null,null,null,":"]
["ENERJİ YÖNETİCİSİ BİLGİLERİ"]
["Adı, Soyadı",null,null,null,null,null,null,null,null,":"]
["Unvanı",null,null,null,null,null,null,null,null,":"]
["T.C. Kimlik Numarası",null,null,null,null,null,null,null,null,":"]
["Sertifika Numarası",null,null,null,null,null,null,null,null,":"]
["Telefon (İş)",null,null,null,null,null,null,null,null,":"]
["Telefon (Cep)",null,null,null,null,null,null,null,null,":"]
["e-posta Adresi",null,null,null,null,null,null,null,null,":"]
["ENERJİ YÖNETİCİSİNİN BAĞLI OLDUĞU ŞİRKET BİLGİLERİ (VARSA)\n(Bu alan dışarıdan hizmet alımı yapılarak enerji yöneticiliği karşılanıyorsa doldurulacaktır.)"]
["Şirketin Adı/Unvanı",null,null,null,null,null,null,null,null,":"]
["İletişim Adresi",null,null,null,null,null,null,null,null,":"]
[]
["Telefon",null,null,null,null,null,null,null,null,":"]
["Faks",null,null,null,null,null,null,null,null,":"]
["e-posta Adresi",null,null,null,null,null,null,null,null,":"]
["BİNA KARAKTERİSTİKLERİ"]
["Kullanım Amacı",null,null,null,null,null,null,null,null,":","Seçiniz"]
["Bildirim Tipi",null,null,null,null,null,null,null,null,":","Seçiniz"]
["Bildirimdeki Bina Sayısı",null,null,null,null,null,null,null,null,":"]
["Bina Yaşı",null,null,null,null,null,null,null,null,":","Seçiniz"]
["Aktif Kullanıcı Sayısı",null,null,null,null,null,null,null,null,":"]
["Toplam İnşaat Alanı (m²)",null,null,null,null,null,null,null,null,":"]
["Bina Şartlandırılan Hacmi (m³)",null,null,null,null,null,null,null,null,":"]
["Kullanım Süresi (saat/Yıl)",null,null,null,null,null,null,null,null,":"]
["Enerji Kimlik Belgesi",null,null,null,null,null,null,null,null,":","Seçiniz",null,null,null,null,null,"Enerji Performans Sınıfı (Varsa)",null,null,null,null,null,null,null,null,"Seçiniz"]
["ISO 50001 Belgesi",null,null,null,null,null,null,null,null,":","Seçiniz",null,null,null,null,null,"Veriliş Tarihi (Varsa)"]
["Etüt Raporu Durumu",null,null,null,null,null,null,null,null,":","Seçiniz",null,null,null,null,null,"Hazırlanış Tarihi (Varsa)"]

{"sheet":"Referans Enerji Tüketimi","index":3,"n_rows":42,"n_cols":28,"rows_kept":42,"cut":false,"hidden":false,"merged":[[40,1,40,7],[40,8,40,11],[40,12,40,14],[40,15,40,18],[40,19,40,22],[40,23,40,26],[40,27,40,31],[37,1,37,31],[11,1,11,7],[11,8,11,11],[11,12,11,14],[11,15,11,18],[11,19,11,22],[12,15,12,18],[12,19,12,22],[12,23,12,26],[30,27,30,31],[23,27,23,31],[18,27,18,31],[12,27,12,31],[27,1,27,7],[27,8,27,11],[35,1,35,31],[36,1,36,7],[0,2,0,31],[38,1,38,7],[38,8,38,11],[38,12,38,14],[38,15,38,18],[38,19,38,22],[38,23,38,26],[38,27,38,31],[39,1,39,31],[11,27,11,31],[30,8,30,11],[30,12,30,14],[30,15,30,18],[30,19,30,22],[30,23,30,26],[28,27,28,31],[28,1,28,7],[28,8,28,11],[28,12,28,14],[28,15,28,18],[28,19,28,22],[28,23,28,26],[12,8,12,11],[12,12,12,14],[36,8,36,11],[36,12,36,14],[36,15,36,18],[36,19,36,22],[36,23,36,26],[36,27,36,31],[33,1,33,31],[34,1,34,7],[34,8,34,11],[34,12,34,14],[34,15,34,18],[34,19,34,22],[34,23,34,26],[34,27,34,31],[29,0,32,0],[29,1,29,7],[29,8,29,11],[29,12,29,14],[29,15,29,18],[29,19,29,22],[29,23,29,26],[29,27,29,31],[30,1,30,7],[31,27,31,31],[32,1,32,7],[32,8,32,11],[32,12,32,14],[32,15,32,18],[32,19,32,22],[32,23,32,26],[32,27,32,31],[31,1,31,7],[31,8,31,11],[31,12,31,14],[31,15,31,18],[31,19,31,22],[31,23,31,26],[27,12,27,14],[27,15,27,18],[27,19,27,22],[27,23,27,26],[27,27,27,31],[24,27,24,31],[25,1,25,7],[25,8,25,11],[25,12,25,14],[25,15,25,18],[25,19,25,22],[25,23,25,26],[25,27,25,31],[24,1,24,7],[24,8,24,11],[24,12,24,14],[24,15,24,18],[24,19,24,22],[24,23,24,26],[23,8,23,11],[23,12,23,14],[23,15,23,18],[23,19,23,22],[23,23,23,26],[21,27,21,31],[22,0,25,0],[22,1,22,7],[22,8,22,11],[22,12,22,14],[22,15,22,18],[22,19,22,22],[22,23,22,26],[22,27,22,31],[23,1,23,7],[21,1,21,7],[21,8,21,11],[21,12,21,14],[21,15,21,18],[21,19,21,22],[21,23,21,26],[19,27,19,31],[20,1,20,7],[20,8,20,11],[20,12,20,14],[20,15,20,18],[20,19,20,22],[20,23,20,26],[20,27,20,31],[19,1,19,7],[19,8,19,11],[19,12,19,14],[19,15,19,18],[19,19,19,22],[19,23,19,26],[13,15,13,18],[13,19,13,22],[13,23,13,26],[13,27,13,31],[14,27,14,31],[11,23,11,26],[12,1,12,7],[13,0,16,0],[18,1,18,7],[18,8,18,11],[18,12,18,14],[18,15,18,18],[18,19,18,22],[18,23,18,26],[17,1,17,22],[17,23,17,26],[15,12,15,14],[15,15,15,18],[15,19,15,22],[15,23,15,26],[14,1,14,7],[13,1,13,7],[13,8,13,11],[13,12,13,14],[14,8,14,11],[14,12,14,14],[14,15,14,18],[14,19,14,22],[14,23,14,26],[15,27,15,31],[16,1,16,7],[16,8,16,11],[16,12,16,14],[16,15,16,18],[16,19,16,22],[16,23,16,26],[16,27,16,31],[15,1,15,7],[15,8,15,11],[9,8,9,11],[9,12,9,14],[9,15,9,18],[4,27,5,31],[7,1,7,7],[7,8,7,11],[7,12,7,14],[7,15,7,18],[7,19,7,22],[7,23,7,26],[4,1,5,7],[4,8,5,11],[4,12,5,14],[4,15,5,18],[4,19,5,22],[4,23,5,26],[6,1,6,22],[6,23,6,26],[6,27,6,31],[9,19,9,22],[9,23,9,26],[41,15,41,26],[41,27,41,31],[1,2,2,31],[17,27,17,31],[26,1,26,22],[26,23,26,26],[26,27,26,31],[7,27,7,31],[8,1,8,7],[8,8,8,11],[8,12,8,14],[8,15,8,18],[8,19,8,22],[8,23,8,26],[8,27,8,31],[9,27,9,31],[10,1,10,7],[10,8,10,11],[10,12,10,14],[10,15,10,18],[10,19,10,22],[10,23,10,26],[10,27,10,31],[9,1,9,7]]}
[null,"►","\"REFERANS ENERJİ TÜKETİMİ\" ilk defa enerji tüketim bildiriminde bulunanlar tarafından doldurulacaktır."]
[null,"►","Sıcak Su, Buhar, Atık Isı ve Elektrik üretmek amacıyla yapılan enerji tüketimi katı,sıvı ve gaz yakıtlar içerisinde girilecektir. Mükerrer giriş olmaması amacıyla varlık içerisinde gerçekleşen enerji üretimi bu tüketim formunda ayrıca sorulmamıştır. Enerji üretiminize ilişkin detay bilgiler Enerji Üretimi sekmesinde sorulacaktır."]
[]
[]
[null,"Tüketilen \nYakıt",null,null,null,null,null,null,"Isıl Değeri\n(kcal / Orj Birim)",null,null,null,"Orijinal Birimi",null,null,"Tüketilen \nMiktar\n(2018)",null,null,null,"Tüketilen \nMiktar\n(2019)",null,null,null,"Tüketilen \nMiktar\n(2020)",null,null,null,"Referans Tüketim\n(TEP/Yıl)"]
[]
[null,"A) KATI YAKITLAR",null,null,null,null,null,null,null,null,null,null,null,null,null,null,null,null,null,null,null,null,null,"Ara Toplam",null,null,null,{"$f":"SUM(AB8:AF17)","v":0}]
[null,"Taş Kömürü",null,null,null,null,null,null,6100000,null,null,null,"Ton",null,null,null,null,null,null,null,null,null,null,null,null,null,null,{"$f":"IF(AND(P8=0,T8=0,X8=0),0,(AVERAGE(P8:AA8)*I8)/10000000)","v":0}]
[null,"Linyit (Teshin & Sanayi)",null,null,null,null,null,null,3000000,null,null,null,"Ton",null,null,null,null,null,null,null,null,null,null,null,null,null,null,{"$f":"IF(AND(P9=0,T9=0,X9=0),0,(AVERAGE(P9:AA9)*I9)/10000000)","v":0}]
[null,"Linyit (Santral)",null,null,null,null,null,null,2000000,null,null,null,"Ton",null,null,null,null,null,null,null,null,null,null,null,null,null,null,0]
[null,"Linyit (4500)",null,null,null,null,null,null,4500000,null,null,null,"Ton",null,null,null,null,null,null,null,null,null,null,null,null,null,null,0]
[null,"Linyit (6500)",null,null,null,null,null,null,6500000,null,null,null,"Ton",null,null,null,null,null,null,null,null,null,null,null,null,null,null,0]
[null,"Odun",null,null,null,null,null,null,3000000,null,null,null,"Ton",null,null,null,null,null,null,null,null,null,null,null,null,null,null,0]
["DİĞER",null,null,null,null,null,null,null,null,null,null,null,null,null,null,null,null,null,null,null,null,null,null,null,null,null,null,0]
[null,null,null,null,null,null,null,null,null,null,null,null,null,null,null,null,null,null,null,null,null,null,null,null,null,null,null,0]
[null,null,null,null,null,null,null,null,null,null,null,null,null,null,null,null,null,null,null,null,null,null,null,null,null,null,null,0]
[null,null,null,null,null,null,null,null,null,null,null,null,null,null,null,null,null,null,null,null,null,null,null,null,null,null,null,0]
[null,"B) SIVI YAKITLAR (Litre - Ton dönüşümü için TEP dönüşümü tablosundaki açıklamaları dikkate alınız.)",null,null,null,null,null,null,null,null,null,null,null,null,null,null,null,null,null,null,null,null,null,"Ara Toplam",null,null,null,{"$f":"SUM(AB19:AF26)","v":0}]
[null,"Motorin",null,null,null,null,null,null,10200000,null,null,null,"Ton",null,null,null,null,null,null,null,null,null,null,null,null,null,null,{"$f":"IF(AND(P19=0,T19=0,X19=0),0,(AVERAGE(P19:AA19)*I19)/10000000)","v":0}]
[null,"Fuel-Oil (No:4)",null,null,null,null,null,null,9600000,null,null,null,"Ton",null,null,null,null,null,null,null,null,null,null,null,null,null,null,{"$f":"IF(AND(P20=0,T20=0,X20=0),0,(AVERAGE(P20:AA20)*I20)/10000000)","v":0}]
[null,"Fuel-Oil (No:5)",null,null,null,null,null,null,10025000,null,null,null,"Ton",null,null,null,null,null,null,null,null,null,null,null,null,null,null,0]
[null,"Fuel-Oil (No:6)",null,null,null,null,null,null,9860000,null,null,null,"Ton",null,null,null,null,null,null,null,null,null,null,null,null,null,null,0]
["DİĞER",null,null,null,null,null,null,null,null,null,null,null,null,null,null,null,null,null,null,null,null,null,null,null,null,null,null,0]
[null,null,null,null,null,null,null,null,null,null,null,null,null,null,null,null,null,null,null,null,null,null,null,null,null,null,null,0]
[null,null,null,null,null,null,null,null,null,null,null,null,null,null,null,null,null,null,null,null,null,null,null,null,null,null,null,0]
[null,null,null,null,null,null,null,null,null,null,null,null,null,null,null,null,null,null,null,null,null,null,null,null,null,null,null,0]
[null,"C) GAZ YAKITLAR (15  ͦ C ve 1 atm basınç altındaki normal metreküp değeri kullanılacaktır)",null,null,null,null,null,null,null,null,null,null,null,null,null,null,null,null,null,null,null,null,null,"Ara Toplam",null,null,null,{"$f":"SUM(AB28:AF33)","v":0}]
[null,"Doğal Gaz",null,null,null,null,null,null,8250,null,null,null,"m³",null,null,null,null,null,null,null,null,null,null,null,null,null,null,{"$f":"IF(AND(P28=0,T28=0,X28=0),0,(AVERAGE(P28:AA28)*I28)/10000000)","v":0}]
[null,"LPG",null,null,null,null,null,null,26000,null,null,null,"m³",null,null,null,null,null,null,null,null,null,null,null,null,null,null,{"$f":"IF(AND(P29=0,T29=0,X29=0),0,(AVERAGE(P29:AA29)*I29)/10000000)","v":0}]
["DİĞER",null,null,null,null,null,null,null,null,null,null,null,null,null,null,null,null,null,null,null,null,null,null,null,null,null,null,0]
[null,null,null,null,null,null,null,null,null,null,null,null,null,null,null,null,null,null,null,null,null,null,null,null,null,null,null,0]
[null,null,null,null,null,null,null,null,null,null,null,null,null,null,null,null,null,null,null,null,null,null,null,null,null,null,null,0]
[null,null,null,null,null,null,null,null,null,null,null,null,null,null,null,null,null,null,null,null,null,null,null,null,null,null,null,0]
[null,"D) NET SICAK SU TÜKETİMİ (Satın Alınan  + Yenilenebilir Enerji Kaynaklarından Üretilen - Satılan )"]
[null,"Sıcak Su",null,null,null,null,null,null,1,null,null,null,"kcal",null,null,null,null,null,null,null,null,null,null,null,null,null,null,{"$f":"IF(AND(P35=0,T35=0,X35=0),0,(AVERAGE(P35:AA35)*I35)/10000000)","v":0}]
[null,"E) NET BUHAR TÜKETİMİ  (Satın Alınan  + Yenilenebilir Enerji Kaynaklarından Üretilen - Satılan )"]
[null,"Buhar",null,null,null,null,null,null,1,null,null,null,"kcal",null,null,null,null,null,null,null,null,null,null,null,null,null,null,{"$f":"IF(AND(P37=0,T37=0,X37=0),0,(AVERAGE(P37:AA37)*I37)/10000000)","v":0}]
[null,"F) NET ATIK ISI TÜKETİMİ  (Satın Alınan  + Yenilenebilir Enerji Kaynaklarından Üretilen - Satılan )"]
[null,"Atık Isı",null,null,null,null,null,null,1,null,null,null,"kcal",null,null,null,null,null,null,null,null,null,null,null,null,null,null,{"$f":"IF(AND(P39=0,T39=0,X39=0),0,(AVERAGE(P39:AA39)*I39)/10000000)","v":0}]
[null,"G) NET ELEKTRİK TÜKETİMİ  (Satın Alınan  + Yenilenebilir Enerji Kaynaklarından Üretilen - Satılan )"]
[null,"Elektrik",null,null,null,null,null,null,860,null,null,null,"kWh",null,null,null,null,null,null,null,null,null,null,null,null,null,null,{"$f":"IF(AND(P41=0,T41=0,X41=0),0,(AVERAGE(P41:AA41)*I41)/10000000)","v":0}]
[null,null,null,null,null,null,null,null,null,null,null,null,null,null,null,"TOPLAM ",null,null,null,null,null,null,null,null,null,null,null,{"$f":"AB41+AB39+AB37+AB35+AB27+AB18+AB7","v":0}]

{"sheet":"2021 Enerji Tüketim Bildirimi","index":4,"n_rows":42,"n_cols":28,"rows_kept":42,"cut":false,"hidden":false,"merged":[[6,1,6,22],[6,23,6,26],[6,27,6,31],[7,1,7,7],[7,8,7,11],[7,12,7,14],[7,27,7,31],[0,2,0,31],[1,2,2,31],[4,1,5,7],[4,8,5,11],[4,12,5,14],[4,27,5,31],[10,27,10,31],[11,1,11,7],[11,8,11,11],[11,12,11,14],[11,27,11,31],[10,1,10,7],[10,8,10,11],[10,12,10,14],[8,27,8,31],[9,1,9,7],[9,8,9,11],[9,12,9,14],[9,27,9,31],[8,1,8,7],[8,8,8,11],[8,12,8,14],[14,8,14,11],[14,12,14,14],[14,27,14,31],[14,15,14,26],[12,27,12,31],[13,0,16,0],[13,1,13,7],[13,8,13,11],[13,12,13,14],[13,27,13,31],[14,1,14,7],[12,1,12,7],[12,8,12,11],[12,12,12,14],[15,27,15,31],[16,1,16,7],[16,8,16,11],[16,12,16,14],[16,27,16,31],[15,15,15,26],[16,15,16,26],[15,1,15,7],[15,8,15,11],[15,12,15,14],[19,27,19,31],[20,1,20,7],[20,8,20,11],[20,12,20,14],[20,27,20,31],[19,1,19,7],[19,8,19,11],[19,12,19,14],[17,1,17,22],[17,23,17,26],[17,27,17,31],[18,1,18,7],[18,8,18,11],[18,12,18,14],[18,27,18,31],[23,27,23,31],[21,27,21,31],[22,0,25,0],[22,1,22,7],[22,8,22,11],[22,12,22,14],[22,27,22,31],[23,1,23,7],[21,1,21,7],[21,8,21,11],[21,12,21,14],[26,27,26,31],[27,1,27,7],[27,8,27,11],[27,12,27,14],[27,27,27,31],[24,27,24,31],[25,1,25,7],[25,8,25,11],[25,12,25,14],[25,27,25,31],[24,15,24,26],[25,15,25,26],[24,1,24,7],[24,8,24,11],[24,12,24,14],[27,15,27,26],[28,27,28,31],[29,0,32,0],[29,1,29,7],[29,8,29,11],[29,12,29,14],[29,27,29,31],[30,1,30,7],[28,1,28,7],[28,8,28,11],[28,12,28,14],[31,27,31,31],[32,1,32,7],[32,8,32,11],[32,12,32,14],[32,27,32,31],[31,1,31,7],[31,8,31,11],[31,12,31,14],[30,8,30,11],[30,12,30,14],[30,27,30,31],[28,15,28,26],[29,15,29,26],[30,15,30,26],[36,8,36,11],[36,12,36,14],[36,27,36,31],[36,15,36,26],[33,1,33,31],[34,1,34,7],[34,8,34,11],[34,12,34,14],[34,27,34,31],[34,15,34,26],[41,15,41,26],[41,27,41,31],[4,15,5,26],[7,15,7,26],[8,15,8,26],[9,15,9,26],[10,15,10,26],[11,15,11,26],[12,15,12,26],[13,15,13,26],[39,1,39,31],[40,1,40,7],[40,8,40,11],[40,12,40,14],[40,27,40,31],[40,15,40,26],[37,1,37,31],[38,1,38,7],[38,8,38,11],[38,12,38,14],[38,27,38,31],[38,15,38,26],[35,1,35,31],[36,1,36,7],[31,15,31,26],[32,15,32,26],[18,15,18,26],[19,15,19,26],[20,15,20,26],[21,15,21,26],[22,15,22,26],[23,15,23,26],[26,1,26,22],[26,23,26,26],[23,8,23,11],[23,12,23,14]]}
[null,"►","Formu doğru bir şekilde doldurabilmek için Lütfen \"TEP Dönüşümü ve Birim Dönüştürücü\" excel dosyasını kullanınız."]
[null,"►","Sıcak Su, Buhar, Atık Isı ve Elektrik üretmek amacıyla yapılan enerji tüketimi katı,sıvı ve gaz yakıtlar içerisinde girilecektir. Mükerrer giriş olmaması amacıyla varlık içerisinde gerçekleşen enerji üretimi bu tüketim formunda ayrıca sorulmamıştır. Enerji üretiminize ilişkin detay bilgiler Enerji Üretimi sekmesinde sorulacaktır."]
[]
[]
[null,"Tüketilen \nYakıt",null,null,null,null,null,null,"Isıl Değeri\n(kcal / Orj Birim)",null,null,null,"Orijinal Birimi",null,null,"TÜKETİLEN ENERJİ MİKTARI\n(2021)",null,null,null,null,null,null,null,null,null,null,null,"Enerji  Tüketimi\n(TEP/Yıl)"]
[]
[null,"A) KATI YAKITLAR",null,null,null,null,null,null,null,null,null,null,null,null,null,null,null,null,null,null,null,null,null,"Ara Toplam",null,null,null,{"$f":"SUM(AB8:AF17)","v":0}]
[null,"Taş Kömürü",null,null,null,null,null,null,6100000,null,null,null,"Ton",null,null,null,null,null,null,null,null,null,null,null,null,null,null,{"$f":"IF(P8=0,0,(P8*I8)/10000000)","v":0}]
[null,"Linyit (Teshin & Sanayi)",null,null,null,null,null,null,3000000,null,null,null,"Ton",null,null,null,null,null,null,null,null,null,null,null,null,null,null,{"$f":"IF(P9=0,0,(P9*I9)/10000000)","v":0}]
[null,"Linyit (Santral)",null,null,null,null,null,null,2000000,null,null,null,"Ton",null,null,null,null,null,null,null,null,null,null,null,null,null,null,0]
[null,"Linyit (4500)",null,null,null,null,null,null,4500000,null,null,null,"Ton",null,null,null,null,null,null,null,null,null,null,null,null,null,null,0]
[null,"Linyit (6500)",null,null,null,null,null,null,6500000,null,null,null,"Ton",null,null,null,null,null,null,null,null,null,null,null,null,null,null,0]
[null,"Odun",null,null,null,null,null,null,3000000,null,null,null,"Ton",null,null,null,null,null,null,null,null,null,null,null,null,null,null,0]
["DİĞER",null,null,null,null,null,null,null,null,null,null,null,null,null,null,null,null,null,null,null,null,null,null,null,null,null,null,0]
[null,null,null,null,null,null,null,null,null,null,null,null,null,null,null,null,null,null,null,null,null,null,null,null,null,null,null,0]
[null,null,null,null,null,null,null,null,null,null,null,null,null,null,null,null,null,null,null,null,null,null,null,null,null,null,null,0]
[null,null,null,null,null,null,null,null,null,null,null,null,null,null,null,null,null,null,null,null,null,null,null,null,null,null,null,0]
[null,"B) SIVI YAKITLAR (Litre - Ton dönüşümü için TEP dönüşümü tablosundaki açıklamaları dikkate alınız.)",null,null,null,null,null,null,null,null,null,null,null,null,null,null,null,null,null,null,null,null,null,"Ara Toplam",null,null,null,{"$f":"SUM(AB19:AF26)","v":0}]
[null,"Motorin",null,null,null,null,null,null,10200000,null,null,null,"Ton",null,null,null,null,null,null,null,null,null,null,null,null,null,null,{"$f":"IF(P19=0,0,(P19*I19)/10000000)","v":0}]
[null,"Fuel-Oil (No:4)",null,null,null,null,null,null,9600000,null,null,null,"Ton",null,null,null,null,null,null,null,null,null,null,null,null,null,null,{"$f":"IF(P20=0,0,(P20*I20)/10000000)","v":0}]
[null,"Fuel-Oil (No:5)",null,null,null,null,null,null,10025000,null,null,null,"Ton",null,null,null,null,null,null,null,null,null,null,null,null,null,null,0]
[null,"Fuel-Oil (No:6)",null,null,null,null,null,null,9860000,null,null,null,"Ton",null,null,null,null,null,null,null,null,null,null,null,null,null,null,0]
["DİĞER",null,null,null,null,null,null,null,null,null,null,null,null,null,null,null,null,null,null,null,null,null,null,null,null,null,null,0]
[null,null,null,null,null,null,null,null,null,null,null,null,null,null,null,null,null,null,null,null,null,null,null,null,null,null,null,0]
[null,null,null,null,null,null,null,null,null,null,null,null,null,null,null,null,null,null,null,null,null,null,null,null,null,null,null,0]
[null,null,null,null,null,null,null,null,null,null,null,null,null,null,null,null,null,null,null,null,null,null,null,null,null,null,null,0]
[null,"C) GAZ YAKITLAR (15  ͦ C ve 1 atm basınç altındaki normal metreküp değeri kullanılacaktır)",null,null,null,null,null,null,null,null,null,null,null,null,null,null,null,null,null,null,null,null,null,"Ara Toplam",null,null,null,{"$f":"SUM(AB28:AF33)","v":0}]
[null,"Doğal Gaz",null,null,null,null,null,null,8250,null,null,null,"m³",null,null,null,null,null,null,null,null,null,null,null,null,null,null,{"$f":"IF(P28=0,0,(P28*I28)/10000000)","v":0}]
[null,"LPG",null,null,null,null,null,null,26000,null,null,null,"m³",null,null,null,null,null,null,null,null,null,null,null,null,null,null,{"$f":"IF(P29=0,0,(P29*I29)/10000000)","v":0}]
["DİĞER",null,null,null,null,null,null,null,null,null,null,null,null,null,null,null,null,null,null,null,null,null,null,null,null,null,null,0]
[null,null,null,null,null,null,null,null,null,null,null,null,null,null,null,null,null,null,null,null,null,null,null,null,null,null,null,0]
[null,null,null,null,null,null,null,null,null,null,null,null,null,null,null,null,null,null,null,null,null,null,null,null,null,null,null,0]
[null,null,null,null,null,null,null,null,null,null,null,null,null,null,null,null,null,null,null,null,null,null,null,null,null,null,null,0]
[null,"D) NET SICAK SU TÜKETİMİ (Satın Alınan  + Yenilenebilir Enerji Kaynaklarından Üretilen - Satılan )"]
[null,"Sıcak Su",null,null,null,null,null,null,1,null,null,null,"kcal",null,null,null,null,null,null,null,null,null,null,null,null,null,null,{"$f":"IF(P35=0,0,(P35*I35)/10000000)","v":0}]
[null,"E) NET BUHAR TÜKETİMİ  (Satın Alınan  + Yenilenebilir Enerji Kaynaklarından Üretilen - Satılan )"]
[null,"Buhar",null,null,null,null,null,null,1,null,null,null,"kcal",null,null,null,null,null,null,null,null,null,null,null,null,null,null,{"$f":"IF(P37=0,0,(P37*I37)/10000000)","v":0}]
[null,"F) NET ATIK ISI TÜKETİMİ  (Satın Alınan  + Yenilenebilir Enerji Kaynaklarından Üretilen - Satılan )"]
[null,"Atık Isı",null,null,null,null,null,null,1,null,null,null,"kcal",null,null,null,null,null,null,null,null,null,null,null,null,null,null,{"$f":"IF(P39=0,0,(P39*I39)/10000000)","v":0}]
[null,"G) NET ELEKTRİK TÜKETİMİ  (Satın Alınan  + Yenilenebilir Enerji Kaynaklarından Üretilen - Satılan )"]
[null,"Elektrik",null,null,null,null,null,null,860,null,null,null,"kWh",null,null,null,null,null,null,null,null,null,null,null,null,null,null,{"$f":"IF(P41=0,0,(P41*I41)/10000000)","v":0}]
[null,null,null,null,null,null,null,null,null,null,null,null,null,null,null,"TOPLAM ",null,null,null,null,null,null,null,null,null,null,null,{"$f":"AB41+AB39+AB37+AB35+AB27+AB18+AB7","v":0}]

{"sheet":"Enerji Üretimi","index":5,"n_rows":25,"n_cols":42,"rows_kept":25,"cut":false,"hidden":false,"merged":[[1,1,2,45],[5,1,6,10],[5,11,6,15],[5,16,6,20],[5,21,6,25],[5,26,6,26],[5,27,6,31],[5,32,6,35],[5,36,6,40],[5,41,6,45],[7,36,7,40],[7,41,7,45],[8,1,8,10],[8,11,8,15],[8,16,8,20],[8,21,8,25],[8,27,8,31],[8,32,8,35],[8,36,8,40],[8,41,8,45],[7,1,7,10],[7,11,7,15],[7,16,7,20],[7,21,7,25],[7,27,7,31],[7,32,7,35],[9,36,9,40],[9,41,9,45],[10,1,10,10],[10,11,10,15],[10,16,10,20],[10,21,10,25],[10,27,10,31],[10,32,10,35],[10,36,10,40],[10,41,10,45],[9,1,9,10],[9,11,9,15],[9,16,9,20],[9,21,9,25],[9,27,9,31],[9,32,9,35],[11,36,11,40],[11,41,11,45],[12,1,12,10],[12,11,12,15],[12,16,12,20],[12,21,12,25],[12,27,12,31],[12,32,12,35],[12,36,12,40],[12,41,12,45],[11,1,11,10],[11,11,11,15],[11,16,11,20],[11,21,11,25],[11,27,11,31],[11,32,11,35],[13,36,13,40],[13,41,13,45],[14,1,14,10],[14,11,14,15],[14,16,14,20],[14,21,14,25],[14,27,14,31],[14,32,14,35],[14,36,14,40],[14,41,14,45],[13,1,13,10],[13,11,13,15],[13,16,13,20],[13,21,13,25],[13,27,13,31],[13,32,13,35],[15,36,15,40],[15,41,15,45],[16,1,16,10],[16,11,16,15],[16,16,16,20],[16,21,16,25],[16,27,16,31],[16,32,16,35],[16,36,16,40],[16,41,16,45],[15,1,15,10],[15,11,15,15],[15,16,15,20],[15,21,15,25],[15,27,15,31],[15,32,15,35],[17,36,17,40],[17,41,17,45],[18,1,18,10],[18,11,18,15],[18,16,18,20],[18,21,18,25],[18,27,18,31],[18,32,18,35],[18,36,18,40],[18,41,18,45],[17,1,17,10],[17,11,17,15],[17,16,17,20],[17,21,17,25],[17,27,17,31],[17,32,17,35],[19,36,19,40],[19,41,19,45],[20,1,20,10],[20,11,20,15],[20,16,20,20],[20,21,20,25],[20,27,20,31],[20,32,20,35],[20,36,20,40],[20,41,20,45],[19,1,19,10],[19,11,19,15],[19,16,19,20],[19,21,19,25],[19,27,19,31],[19,32,19,35],[21,36,21,40],[21,41,21,45],[22,1,22,10],[22,11,22,15],[22,16,22,20],[22,21,22,25],[22,27,22,31],[22,32,22,35],[22,36,22,40],[22,41,22,45],[21,1,21,10],[21,11,21,15],[21,16,21,20],[21,21,21,25],[21,27,21,31],[21,32,21,35],[23,36,23,40],[23,41,23,45],[24,1,24,10],[24,11,24,15],[24,16,24,20],[24,21,24,25],[24,27,24,31],[24,32,24,35],[24,36,24,40],[24,41,24,45],[23,1,23,10],[23,11,23,15],[23,16,23,20],[23,21,23,25],[23,27,23,31],[23,32,23,35]]}
[]
["►","5627 Sayılı Enerji Verimliliği Kanunu Uyarınca 100 MWe ve üzerinde kurulu gücü bulunan varlıklar yükümlü Elektrik Üretim Tesisi (EÜT) sayılır ve varlık haricinde bu alan için EÜT formu doldurarak Bakanlığımıza iletirler. "]
[]
["►","Bunun dışında kojenerasyon tesisi bulunan binalar için aşağıdaki tablonun doldurulması beklenmektedir."]
[]
[null,"Üretici Firma, Marka, Model",null,null,null,null,null,null,null,null,null,"Kojen Yaşı",null,null,null,null,"Teknoloji Türü",null,null,null,null,"Ortalama Kullanım Süresi (saat/Yıl)",null,null,null,null,"Kojen Verimi \n(%)","Elektrik \nTüketimi\n(TEP/Yıl)",null,null,null,null,"Elektrik Üretimi\n(TEP/Yıl)",null,null,null,"Toplam Yakıt Tüketimi\n(TEP/Yıl)",null,null,null,null,"Toplam Isı Üretimi\n(TEP/Yıl)"]
[]
[null,null,null,null,null,null,null,null,null,null,null,"Seçiniz",null,null,null,null,"Seçiniz"]
[null,null,null,null,null,null,null,null,null,null,null,"Seçiniz",null,null,null,null,"Seçiniz"]
[null,null,null,null,null,null,null,null,null,null,null,"Seçiniz",null,null,null,null,"Seçiniz"]
[null,null,null,null,null,null,null,null,null,null,null,"Seçiniz",null,null,null,null,"Seçiniz"]
[null,null,null,null,null,null,null,null,null,null,null,"Seçiniz",null,null,null,null,"Seçiniz"]
[null,null,null,null,null,null,null,null,null,null,null,"Seçiniz",null,null,null,null,"Seçiniz"]
[null,null,null,null,null,null,null,null,null,null,null,"Seçiniz",null,null,null,null,"Seçiniz"]
[null,null,null,null,null,null,null,null,null,null,null,"Seçiniz",null,null,null,null,"Seçiniz"]
[null,null,null,null,null,null,null,null,null,null,null,"Seçiniz",null,null,null,null,"Seçiniz"]
[null,null,null,null,null,null,null,null,null,null,null,"Seçiniz",null,null,null,null,"Seçiniz"]
[null,null,null,null,null,null,null,null,null,null,null,"Seçiniz",null,null,null,null,"Seçiniz"]
[null,null,null,null,null,null,null,null,null,null,null,"Seçiniz",null,null,null,null,"Seçiniz"]
[null,null,null,null,null,null,null,null,null,null,null,"Seçiniz",null,null,null,null,"Seçiniz"]
[null,null,null,null,null,null,null,null,null,null,null,"Seçiniz",null,null,null,null,"Seçiniz"]
[null,null,null,null,null,null,null,null,null,null,null,"Seçiniz",null,null,null,null,"Seçiniz"]
[null,null,null,null,null,null,null,null,null,null,null,"Seçiniz",null,null,null,null,"Seçiniz"]
[null,null,null,null,null,null,null,null,null,null,null,"Seçiniz",null,null,null,null,"Seçiniz"]
[null,null,null,null,null,null,null,null,null,null,null,"Seçiniz",null,null,null,null,"Seçiniz"]

{"sheet":" Enerji Tüketim Dağılımı","index":6,"n_rows":25,"n_cols":31,"rows_kept":25,"cut":false,"hidden":false,"merged":[[0,2,0,46],[1,2,2,10],[1,11,2,18],[1,19,2,26],[3,2,4,10],[3,11,4,18],[3,19,4,26],[2,30,4,47],[5,2,6,10],[7,2,8,10],[5,11,6,18],[7,11,8,18],[5,19,6,26],[7,19,8,26],[21,2,22,10],[21,11,22,18],[21,19,22,26],[9,2,10,10],[9,11,10,18],[9,19,10,26],[11,2,12,10],[13,2,14,10],[11,11,12,18],[13,11,14,18],[11,19,12,26],[13,19,14,26],[18,30,19,47],[21,30,22,47],[24,30,25,47],[6,30,8,47],[17,2,18,10],[17,11,18,18],[17,19,18,26],[19,2,20,10],[19,11,20,18],[19,19,20,26],[10,30,11,47],[13,30,13,47],[15,30,16,47],[15,2,16,10],[15,11,16,18],[15,19,16,26]]}
[null,"►","Sayaçlarla ölçümün mümkün olmadığı hallerde mühendislik yaklaşımları kullanarak veya varsa binanız için hazırlanan etüt raporlarından faydalanabilirsiniz. "]
[null,null,"Enerjinin Kullanım Alanı",null,null,null,null,null,null,null,null,"Elektrik Tüketimi\n(%)",null,null,null,null,null,null,null,"Yakıt Tüketimi\n(%)",null,null,null,null,null,null,null,null,null,"►","Alan Isıtma :"]
[null,null,null,null,null,null,null,null,null,null,null,null,null,null,null,null,null,null,null,null,null,null,null,null,null,null,null,null,null,null,"Isıtma için kullanılan enerji miktarını ifade eder. Havalandırma sistemindeki ön ısıtma amaçlı tüketim ve buharlı nemlendiricinin tükettiği enerji bu bölüme dahil edilecektir. Isıtma tesisatında kullanılan pompa, motor, kontrol elemanları gibi yardımcı ekipmanların tüketimi de bu alanda dikkate alınacaktır."]
[null,null,"Alan Isıtma"]
[]
[null,null,"Alan Soğutma",null,null,null,null,null,null,null,null,null,null,null,null,null,null,null,null,null,null,null,null,null,null,null,null,null,null,"►","Alan Soğutma :"]
[null,null,null,null,null,null,null,null,null,null,null,null,null,null,null,null,null,null,null,null,null,null,null,null,null,null,null,null,null,null,"Soğutma için kullanılan enerji miktarını ifade eder. Havalandırma sistemine verilen taze havanın soğutulması için harcanan enerji ve nem alıcının tükettiği enerji bu bölüme dahil edilecektir. Soğutma tesisatında kullanılan pompa, motor, kontrol elemanları gibi yardımcı ekipmanların tüketimi de bu alanda dikkate alınacaktır."]
[null,null,"Sıhhi Sıcak Su "]
[]
[null,null,"Havalandırma",null,null,null,null,null,null,null,null,null,null,null,null,null,null,null,null,null,null,null,null,null,null,null,null,null,null,"►","Sıhhi Sıcak Su :"]
[null,null,null,null,null,null,null,null,null,null,null,null,null,null,null,null,null,null,null,null,null,null,null,null,null,null,null,null,null,null,"Sıcak Su üretimi için tüketilen enerji miktarını ifade eder. Sıhhi tesisatta yer alan pompa, kontrol elemanları gibi yardımcı ekipmanların tüketimi de dahil edilecektir."]
[null,null,"İç Aydınlatma"]
[null,null,null,null,null,null,null,null,null,null,null,null,null,null,null,null,null,null,null,null,null,null,null,null,null,null,null,null,null,"►","Havalandırma :"]
[null,null,"Dış Aydınlatma",null,null,null,null,null,null,null,null,null,null,null,null,null,null,null,null,null,null,null,null,null,null,null,null,null,null,null,"Havalandırma sistemindeki fanların tükettiği enerji miktarını ifade eder."]
[null,null,null,null,null,null,null,null,null,null,null,null,null,null,null,null,null,null,null,null,null,null,null,null,null,null,null,null,null,"►","Aydınlatma :"]
[null,null,"Elektrikli Ekipmanlar",null,null,null,null,null,null,null,null,null,null,null,null,null,null,null,null,null,null,null,null,null,null,null,null,null,null,null,"Aydınlatma armatürlerinin ve yardımcı kontrol elemanlarının tükettiği enerji miktarını ifade eder. İç ortam ve dış ortam için ayrı ayrı hesaplama yapınız."]
[]
[null,null,"Mutfak",null,null,null,null,null,null,null,null,null,null,null,null,null,null,null,null,null,null,null,null,null,null,null,null,null,null,"►","Elektrikli Ekipmanlar :"]
[null,null,null,null,null,null,null,null,null,null,null,null,null,null,null,null,null,null,null,null,null,null,null,null,null,null,null,null,null,null,"Ofis ekipmanları (Bilgisayar, Yazıcı, Tarayıcı, Faks Makinesi, Fotokopi Makinesi, Projeksiyon Cihazları,  mobil cihazlar, çay/kahve makineleri, asansörler, yürüyen merdivenler, bina otomasyon sistemleri, bina güvenlik sistemleri, Bilgi işlem merkezleri  vs.) gibi elektrik tüketen cihazların toplam enerji tüketimini ifade eder."]
[null,null,"Çamaşırhane"]
[null,null,null,null,null,null,null,null,null,null,null,null,null,null,null,null,null,null,null,null,null,null,null,null,null,null,null,null,null,"►","Mutfak :"]
[null,null,"Diğer",null,null,null,null,null,null,null,null,null,null,null,null,null,null,null,null,null,null,null,null,null,null,null,null,null,null,null,"Yemekhane, kafeterya, restoran gibi sosyal alanların bulunduğu binalarda; ocak, fırın, benmari tezgahı, bulaşık makineleri, buz dolabı, soğuk depolar vs. ekipmanların tükettiği enerji miktarını ifade eder."]
[]
[null,null,null,null,null,null,null,null,null,null,null,null,null,null,null,null,null,null,null,null,null,null,null,null,null,null,null,null,null,"►","Çamaşırhane :"]
[null,null,null,null,null,null,null,null,null,null,null,null,null,null,null,null,null,null,null,null,null,null,null,null,null,null,null,null,null,null,"Çamaşırhane hizmeti verebilen binalarda; çamaşır makineleri, çamaşır kurutma makineleri, kuru temizleme makineleri vs. ve pompa kontrol ekipmanı gibi yardımcı elemanların tükettiği toplam enerji miktarını ifade eder."]

{"sheet":"Bina Grubu Envanter Tablosu","index":7,"n_rows":25,"n_cols":45,"rows_kept":25,"cut":false,"hidden":false,"merged":[[2,44,3,47],[2,11,3,14],[4,1,4,2],[4,3,4,10],[4,11,4,14],[4,15,4,21],[4,22,4,26],[4,27,4,31],[4,32,4,35],[2,1,3,2],[2,3,3,10],[2,15,3,21],[2,22,3,26],[2,27,3,31],[2,32,3,35],[2,36,3,39],[2,40,3,43],[4,36,4,39],[4,40,4,43],[4,44,4,47],[5,44,5,47],[6,1,6,2],[6,3,6,10],[6,11,6,14],[6,15,6,21],[6,22,6,26],[6,27,6,31],[6,32,6,35],[6,36,6,39],[6,40,6,43],[6,44,6,47],[5,1,5,2],[5,3,5,10],[5,11,5,14],[5,15,5,21],[5,22,5,26],[5,27,5,31],[5,32,5,35],[5,36,5,39],[5,40,5,43],[7,44,7,47],[8,1,8,2],[8,3,8,10],[8,11,8,14],[8,15,8,21],[8,22,8,26],[8,27,8,31],[8,32,8,35],[8,36,8,39],[8,40,8,43],[8,44,8,47],[7,1,7,2],[7,3,7,10],[7,11,7,14],[7,15,7,21],[7,22,7,26],[7,27,7,31],[7,32,7,35],[7,36,7,39],[7,40,7,43],[9,44,9,47],[10,1,10,2],[10,3,10,10],[10,11,10,14],[10,15,10,21],[10,22,10,26],[10,27,10,31],[10,32,10,35],[10,36,10,39],[10,40,10,43],[10,44,10,47],[9,1,9,2],[9,3,9,10],[9,11,9,14],[9,15,9,21],[9,22,9,26],[9,27,9,31],[9,32,9,35],[9,36,9,39],[9,40,9,43],[11,44,11,47],[12,1,12,2],[12,3,12,10],[12,11,12,14],[12,15,12,21],[12,22,12,26],[12,27,12,31],[12,32,12,35],[12,36,12,39],[12,40,12,43],[12,44,12,47],[11,1,11,2],[11,3,11,10],[11,11,11,14],[11,15,11,21],[11,22,11,26],[11,27,11,31],[11,32,11,35],[11,36,11,39],[11,40,11,43],[13,44,13,47],[14,1,14,2],[14,3,14,10],[14,11,14,14],[14,15,14,21],[14,22,14,26],[14,27,14,31],[14,32,14,35],[14,36,14,39],[14,40,14,43],[14,44,14,47],[13,1,13,2],[13,3,13,10],[13,11,13,14],[13,15,13,21],[13,22,13,26],[13,27,13,31],[13,32,13,35],[13,36,13,39],[13,40,13,43],[15,44,15,47],[16,1,16,2],[16,3,16,10],[16,11,16,14],[16,15,16,21],[16,22,16,26],[16,27,16,31],[16,32,16,35],[16,36,16,39],[16,40,16,43],[16,44,16,47],[15,1,15,2],[15,3,15,10],[15,11,15,14],[15,15,15,21],[15,22,15,26],[15,27,15,31],[15,32,15,35],[15,36,15,39],[15,40,15,43],[17,44,17,47],[18,1,18,2],[18,3,18,10],[18,11,18,14],[18,15,18,21],[18,22,18,26],[18,27,18,31],[18,32,18,35],[18,36,18,39],[18,40,18,43],[18,44,18,47],[17,1,17,2],[17,3,17,10],[17,11,17,14],[17,15,17,21],[17,22,17,26],[17,27,17,31],[17,32,17,35],[17,36,17,39],[17,40,17,43],[19,44,19,47],[20,1,20,2],[20,3,20,10],[20,11,20,14],[20,15,20,21],[20,22,20,26],[20,27,20,31],[20,32,20,35],[20,36,20,39],[20,40,20,43],[20,44,20,47],[19,1,19,2],[19,3,19,10],[19,11,19,14],[19,15,19,21],[19,22,19,26],[19,27,19,31],[19,32,19,35],[19,36,19,39],[19,40,19,43],[22,11,22,14],[22,15,22,21],[22,22,22,26],[22,27,22,31],[22,32,22,35],[24,36,24,39],[24,40,24,43],[24,44,24,47],[21,1,21,2],[21,3,21,10],[21,11,21,14],[21,15,21,21],[21,22,21,26],[21,27,21,31],[21,32,21,35],[21,36,21,39],[21,40,21,43],[0,2,0,46],[23,36,23,39],[23,40,23,43],[23,44,23,47],[24,1,24,2],[24,3,24,10],[24,11,24,14],[24,15,24,21],[24,22,24,26],[24,27,24,31],[24,32,24,35],[22,36,22,39],[22,40,22,43],[22,44,22,47],[23,1,23,2],[23,3,23,10],[23,11,23,14],[23,15,23,21],[23,22,23,26],[23,27,23,31],[23,32,23,35],[21,44,21,47],[22,1,22,2],[22,3,22,10]]}
[null,"►","Aşağıdaki tablo bina grubu (kampüs) bildiriminde bulunan binalar için kullanılacaktır. Münferit Bina Bildirimlerinde bu tabloyu boş bırakınız."]
[]
[null,"No",null,"Bina Adı",null,null,null,null,null,null,null,"Bina Yaşı",null,null,null,"Toplam İnşaat Alanı\n(m²) ",null,null,null,null,null,null,"Toplam Eletrik Tüketimi\n(kWh/Yıl)",null,null,null,null,"Toplam Yakıt Tüketimi\n(kcal/Yıl)",null,null,null,null,"Aktif Çalışan Sayısı",null,null,null,"Kullanım Süresi\n(saat/Yıl)",null,null,null,"Enerji Kimlik Belgesi",null,null,null,"Enerji Performans Sınıfı"]
[]
[null,1,null,null,null,null,null,null,null,null,null,"Seçiniz",null,null,null,null,null,null,null,null,null,null,null,null,null,null,null,null,null,null,null,null,null,null,null,null,null,null,null,null,"Seçiniz"]
[null,2,null,null,null,null,null,null,null,null,null,"Seçiniz",null,null,null,null,null,null,null,null,null,null,null,null,null,null,null,null,null,null,null,null,null,null,null,null,null,null,null,null,"Seçiniz"]
[null,3,null,null,null,null,null,null,null,null,null,"Seçiniz",null,null,null,null,null,null,null,null,null,null,null,null,null,null,null,null,null,null,null,null,null,null,null,null,null,null,null,null,"Seçiniz"]
[null,4,null,null,null,null,null,null,null,null,null,"Seçiniz",null,null,null,null,null,null,null,null,null,null,null,null,null,null,null,null,null,null,null,null,null,null,null,null,null,null,null,null,"Seçiniz"]
[null,5,null,null,null,null,null,null,null,null,null,"Seçiniz",null,null,null,null,null,null,null,null,null,null,null,null,null,null,null,null,null,null,null,null,null,null,null,null,null,null,null,null,"Seçiniz"]
[null,6,null,null,null,null,null,null,null,null,null,"Seçiniz",null,null,null,null,null,null,null,null,null,null,null,null,null,null,null,null,null,null,null,null,null,null,null,null,null,null,null,null,"Seçiniz"]
[null,7,null,null,null,null,null,null,null,null,null,"Seçiniz",null,null,null,null,null,null,null,null,null,null,null,null,null,null,null,null,null,null,null,null,null,null,null,null,null,null,null,null,"Seçiniz"]
[null,8,null,null,null,null,null,null,null,null,null,"Seçiniz",null,null,null,null,null,null,null,null,null,null,null,null,null,null,null,null,null,null,null,null,null,null,null,null,null,null,null,null,"Seçiniz"]
[null,9,null,null,null,null,null,null,null,null,null,"Seçiniz",null,null,null,null,null,null,null,null,null,null,null,null,null,null,null,null,null,null,null,null,null,null,null,null,null,null,null,null,"Seçiniz"]
[null,10,null,null,null,null,null,null,null,null,null,"Seçiniz",null,null,null,null,null,null,null,null,null,null,null,null,null,null,null,null,null,null,null,null,null,null,null,null,null,null,null,null,"Seçiniz"]
[null,11,null,null,null,null,null,null,null,null,null,"Seçiniz",null,null,null,null,null,null,null,null,null,null,null,null,null,null,null,null,null,null,null,null,null,null,null,null,null,null,null,null,"Seçiniz"]
[null,12,null,null,null,null,null,null,null,null,null,"Seçiniz",null,null,null,null,null,null,null,null,null,null,null,null,null,null,null,null,null,null,null,null,null,null,null,null,null,null,null,null,"Seçiniz"]
[null,13,null,null,null,null,null,null,null,null,null,"Seçiniz",null,null,null,null,null,null,null,null,null,null,null,null,null,null,null,null,null,null,null,null,null,null,null,null,null,null,null,null,"Seçiniz"]
[null,14,null,null,null,null,null,null,null,null,null,"Seçiniz",null,null,null,null,null,null,null,null,null,null,null,null,null,null,null,null,null,null,null,null,null,null,null,null,null,null,null,null,"Seçiniz"]
[null,15,null,null,null,null,null,null,null,null,null,"Seçiniz",null,null,null,null,null,null,null,null,null,null,null,null,null,null,null,null,null,null,null,null,null,null,null,null,null,null,null,null,"Seçiniz"]
[null,16,null,null,null,null,null,null,null,null,null,"Seçiniz",null,null,null,null,null,null,null,null,null,null,null,null,null,null,null,null,null,null,null,null,null,null,null,null,null,null,null,null,"Seçiniz"]
[null,17,null,null,null,null,null,null,null,null,null,"Seçiniz",null,null,null,null,null,null,null,null,null,null,null,null,null,null,null,null,null,null,null,null,null,null,null,null,null,null,null,null,"Seçiniz"]
[null,18,null,null,null,null,null,null,null,null,null,"Seçiniz",null,null,null,null,null,null,null,null,null,null,null,null,null,null,null,null,null,null,null,null,null,null,null,null,null,null,null,null,"Seçiniz"]
[null,19,null,null,null,null,null,null,null,null,null,"Seçiniz",null,null,null,null,null,null,null,null,null,null,null,null,null,null,null,null,null,null,null,null,null,null,null,null,null,null,null,null,"Seçiniz"]
[null,20,null,null,null,null,null,null,null,null,null,"Seçiniz",null,null,null,null,null,null,null,null,null,null,null,null,null,null,null,null,null,null,null,null,null,null,null,null,null,null,null,null,"Seçiniz"]
[null,21,null,null,null,null,null,null,null,null,null,"Seçiniz",null,null,null,null,null,null,null,null,null,null,null,null,null,null,null,null,null,null,null,null,null,null,null,null,null,null,null,null,"Seçiniz"]